[Event "*** Titled Tuesday Blitz"]
[Site "Chess.com"]
[Date "2021.04.06"]
[Round "7"]
[White "chesslh19"]
[Black "bushrashuaibi"]
[Result "0-1"]
[WhiteElo "2233"]
[BlackElo "2204"]
[TimeControl "180+1"]
[EndTime "11:19:12 PDT"]
[Termination "bushrashuaibi won by resignation"]

1. e4 {[%clk 0:02:59.3]} 1... c5 {[%clk 0:02:58.4]} 2. Nf3 {[%clk 0:02:58.9]}
2... Nc6 {[%clk 0:02:58.2]} 3. d4 {[%clk 0:02:59.2]} 3... cxd4 {[%clk
0:02:59.1]} 4. Nxd4 {[%clk 0:02:59.9]} 4... Nf6 {[%clk 0:02:59.3]} 5. Nc3 {[%clk
0:03:00]} 5... e5 {[%clk 0:02:59.6]} 6. Ndb5 {[%clk 0:03:00.2]} 6... d6 {[%clk
0:02:59.9]} 7. Bg5 {[%clk 0:03:00.4]} 7... a6 {[%clk 0:03:00.2]} 8. Na3 {[%clk
0:03:00.8]} 8... b5 {[%clk 0:02:59.9]} 9. Nd5 {[%clk 0:03:01.4]} 9... Be7 {[%clk
0:03:00]} 10. Bxf6 {[%clk 0:03:02.1]} 10... Bxf6 {[%clk 0:03:00.9]} 11. c3
{[%clk 0:03:02.6]} 11... O-O {[%clk 0:03:00]} 12. Nc2 {[%clk 0:03:03.1]} 12...
Rb8 {[%clk 0:03:00.4]} 13. h4 {[%clk 0:02:59.6]} 13... Be6 {[%clk 0:02:59.8]}
14. g3 {[%clk 0:02:53.6]} 14... Qd7 {[%clk 0:02:59.6]} 15. Bg2 {[%clk
0:02:17.7]} 15... Bd8 {[%clk 0:02:57.2]} 16. Nce3 {[%clk 0:02:08.2]} 16... a5
{[%clk 0:02:55.6]} 17. a3 {[%clk 0:02:00]} 17... b4 {[%clk 0:02:47.9]} 18. axb4
{[%clk 0:01:59.7]} 18... axb4 {[%clk 0:02:48.8]} 19. O-O {[%clk 0:01:36.6]}
19... bxc3 {[%clk 0:02:48.7]} 20. bxc3 {[%clk 0:01:37.5]} 20... Ne7 {[%clk
0:02:47.2]} 21. Qd3 {[%clk 0:01:29.6]} 21... Nxd5 {[%clk 0:02:36.4]} 22. Nxd5
{[%clk 0:01:29.4]} 22... g6 {[%clk 0:02:28.1]} 23. Rab1 {[%clk 0:01:25.5]} 23...
Rxb1 {[%clk 0:02:27.9]} 24. Rxb1 {[%clk 0:01:25.1]} 24... f5 {[%clk 0:02:27.8]}
25. h5 {[%clk 0:01:18.6]} 25... Qf7 {[%clk 0:01:50.9]} 26. hxg6 {[%clk
0:01:13.9]} 26... hxg6 {[%clk 0:01:51.8]} 27. Rb2 {[%clk 0:01:01]} 27... Bxd5
{[%clk 0:01:46.4]} 28. Qxd5 {[%clk 0:01:00.8]} 28... Qxd5 {[%clk 0:01:46.6]} 29.
exd5 {[%clk 0:01:01.7]} 29... e4 {[%clk 0:01:42.2]} 30. f3 {[%clk 0:00:54.1]}
30... e3 {[%clk 0:01:33.2]} 31. Kf1 {[%clk 0:00:41.7]} 31... Bf6 {[%clk
0:01:31.3]} 32. Rc2 {[%clk 0:00:39.7]} 32... Rc8 {[%clk 0:01:22.9]} 33. Ke2
{[%clk 0:00:39.4]} 33... Bd4 {[%clk 0:01:06.7]} 34. Kd3 {[%clk 0:00:36.7]} 34...
Bc5 {[%clk 0:01:01.4]} 35. f4 {[%clk 0:00:27.3]} 35... Ra8 {[%clk 0:00:52.6]}
36. Bf3 {[%clk 0:00:18.6]} 36... Ra1 {[%clk 0:00:52]} 37. g4 {[%clk 0:00:16.7]}
37... Kg7 {[%clk 0:00:40.6]} 38. gxf5 {[%clk 0:00:16]} 38... gxf5 {[%clk
0:00:41.5]} 39. Kc4 {[%clk 0:00:14.1]} 39... Kf6 {[%clk 0:00:39]} 40. Be2 {[%clk
0:00:13.5]} 40... Ra4+ {[%clk 0:00:37.4]} 41. Kb5 {[%clk 0:00:12.3]} 41... Rxf4
{[%clk 0:00:38.3]} 42. Kc6 {[%clk 0:00:12.3]} 42... Rf2 {[%clk 0:00:35.7]} 43.
Kb5 {[%clk 0:00:08.1]} 43... f4 {[%clk 0:00:35.8]} 44. Kc4 {[%clk 0:00:06.4]}
44... f3 {[%clk 0:00:34.8]} 45. Kd3 {[%clk 0:00:04.7]} 45... fxe2 {[%clk
0:00:33.3]} 46. Rxe2 {[%clk 0:00:05.6]} 46... Ke5 {[%clk 0:00:31.5]} 47. Re1
{[%clk 0:00:04.4]} 47... Kxd5 {[%clk 0:00:24.1]} 48. c4+ {[%clk 0:00:04.6]}
48... Ke5 {[%clk 0:00:23.9]} 49. Rh1 {[%clk 0:00:05]} 49... Rd2+ {[%clk
0:00:22.2]} 50. Kc3 {[%clk 0:00:05.1]} 50... Bd4+ {[%clk 0:00:20.3]} 51. Kb3
{[%clk 0:00:04.5]} 51... e2 {[%clk 0:00:19.9]} 52. Rh5+ {[%clk 0:00:03.4]} 52...
Kf4 {[%clk 0:00:19.7]} 53. Rh4+ {[%clk 0:00:03.4]} 53... Ke3 {[%clk 0:00:20.1]}
54. Rh3+ {[%clk 0:00:03.9]} 54... Kf2 {[%clk 0:00:19.8]} 55. Rh2+ {[%clk
0:00:04.3]} 55... Kg1 {[%clk 0:00:20]} 0-1

[Event "*** Titled Tuesday Blitz"]
[Site "Chess.com"]
[Date "2021.04.06"]
[Round "7"]
[White "Dyadya81"]
[Black "bazar-wokzal"]
[Result "0-1"]
[WhiteElo "2709"]
[BlackElo "2588"]
[TimeControl "180+1"]
[EndTime "11:19:13 PDT"]
[Termination "bazar-wokzal won on time"]

1. e4 {[%clk 0:03:00.9]} 1... Nc6 {[%clk 0:02:12.7]} 2. Nc3 {[%clk 0:02:59.5]}
2... Nf6 {[%clk 0:02:11.9]} 3. f4 {[%clk 0:02:53]} 3... d5 {[%clk 0:02:11.7]} 4.
e5 {[%clk 0:02:53.3]} 4... d4 {[%clk 0:02:11.9]} 5. Nce2 {[%clk 0:02:19.3]} 5...
d3 {[%clk 0:02:11.8]} 6. cxd3 {[%clk 0:02:16.4]} 6... Nd5 {[%clk 0:02:09.7]} 7.
Nf3 {[%clk 0:02:12.3]} 7... Bg4 {[%clk 0:02:09]} 8. Ng3 {[%clk 0:01:38.8]} 8...
Nxf4 {[%clk 0:02:02]} 9. Qa4 {[%clk 0:01:38.3]} 9... Bxf3 {[%clk 0:01:59.2]} 10.
Qxf4 {[%clk 0:01:38]} 10... Bd5 {[%clk 0:01:58.3]} 11. b3 {[%clk 0:01:27.8]}
11... e6 {[%clk 0:01:57.7]} 12. Bb2 {[%clk 0:01:27.2]} 12... Be7 {[%clk
0:01:51.8]} 13. Be2 {[%clk 0:01:23.6]} 13... Bxg2 {[%clk 0:01:47.6]} 14. Rg1
{[%clk 0:01:23.3]} 14... Bd5 {[%clk 0:01:47.7]} 15. Nh5 {[%clk 0:01:23.2]} 15...
Bh4+ {[%clk 0:01:36.8]} 16. Kd1 {[%clk 0:01:10.9]} 16... g6 {[%clk 0:01:30.4]}
17. Ng7+ {[%clk 0:00:50.9]} 17... Kf8 {[%clk 0:01:30.2]} 18. Qh6 {[%clk
0:00:50.4]} 18... Kg8 {[%clk 0:01:30.3]} 19. Nh5 {[%clk 0:00:48.9]} 19... Qf8
{[%clk 0:01:20.6]} 20. Qf4 {[%clk 0:00:48.5]} 20... Be7 {[%clk 0:01:17.3]} 21.
h4 {[%clk 0:00:41]} 21... Rd8 {[%clk 0:01:14.8]} 22. Nf6+ {[%clk 0:00:37.5]}
22... Bxf6 {[%clk 0:01:13.6]} 23. exf6 {[%clk 0:00:38.4]} 23... e5 {[%clk
0:00:55.9]} 24. Qe3 {[%clk 0:00:31.4]} 24... h5 {[%clk 0:00:37.7]} 25. Rc1
{[%clk 0:00:27.4]} 25... Kh7 {[%clk 0:00:36.3]} 26. Rg5 {[%clk 0:00:25.7]} 26...
Qh6 {[%clk 0:00:30.6]} 27. Rc5 {[%clk 0:00:23.5]} 27... Rhe8 {[%clk 0:00:29.3]}
28. Qg3 {[%clk 0:00:22.5]} 28... Be6 {[%clk 0:00:22.3]} 29. Rxc6 {[%clk
0:00:17.2]} 29... bxc6 {[%clk 0:00:22]} 30. Bxe5 {[%clk 0:00:17.8]} 30... Bf5
{[%clk 0:00:19]} 31. Bf4 {[%clk 0:00:13.9]} 31... Qf8 {[%clk 0:00:18.4]} 32.
Rxf5 {[%clk 0:00:09.6]} 32... Rxe2 {[%clk 0:00:16.5]} 33. Qg5 {[%clk 0:00:10.2]}
33... gxf5 {[%clk 0:00:14.9]} 34. Qxh5+ {[%clk 0:00:08.5]} 34... Kg8 {[%clk
0:00:14.7]} 35. Qg5+ {[%clk 0:00:08.9]} 35... Kh7 {[%clk 0:00:14.4]} 36. Qxf5+
{[%clk 0:00:09.3]} 36... Kg8 {[%clk 0:00:14.3]} 37. Qg5+ {[%clk 0:00:08.3]}
37... Kh8 {[%clk 0:00:14.4]} 38. Kxe2 {[%clk 0:00:08.4]} 38... Re8+ {[%clk
0:00:12.1]} 39. Kd1 {[%clk 0:00:08.3]} 39... Qg8 {[%clk 0:00:12.6]} 40. Qh5+
{[%clk 0:00:06.6]} 40... Qh7 {[%clk 0:00:13]} 41. Qf3 {[%clk 0:00:06.6]} 41...
Qg6 {[%clk 0:00:12.6]} 42. Bg5 {[%clk 0:00:06.3]} 42... Kh7 {[%clk 0:00:11.4]}
43. Qxc6 {[%clk 0:00:06]} 43... Rd8 {[%clk 0:00:07.8]} 44. Qxc7 {[%clk
0:00:06.5]} 44... Rxd3 {[%clk 0:00:07.7]} 45. Qxa7 {[%clk 0:00:06.4]} 45... Rh3
{[%clk 0:00:06.9]} 46. Qf2 {[%clk 0:00:04.5]} 46... Qd3 {[%clk 0:00:06.1]} 47.
Qg2 {[%clk 0:00:03.1]} 47... Rf3 {[%clk 0:00:06.1]} 0-1

[Event "*** Titled Tuesday Blitz"]
[Site "Chess.com"]
[Date "2021.04.06"]
[Round "7"]
[White "tusplingher"]
[Black "GMaka"]
[Result "0-1"]
[WhiteElo "2318"]
[BlackElo "2463"]
[TimeControl "180+1"]
[EndTime "11:19:13 PDT"]
[Termination "GMaka won by resignation"]

1. e4 {[%clk 0:03:00.9]} 1... c6 {[%clk 0:02:59.7]} 2. Nc3 {[%clk 0:02:58.2]}
2... d5 {[%clk 0:03:00.6]} 3. Nf3 {[%clk 0:02:57.8]} 3... a6 {[%clk 0:03:00.9]}
4. exd5 {[%clk 0:02:56.5]} 4... cxd5 {[%clk 0:03:01.8]} 5. d4 {[%clk 0:02:56.8]}
5... Bg4 {[%clk 0:03:01.2]} 6. Be2 {[%clk 0:02:56.9]} 6... Nc6 {[%clk
0:03:01.3]} 7. O-O {[%clk 0:02:56.6]} 7... e6 {[%clk 0:03:01.5]} 8. h3 {[%clk
0:02:56.5]} 8... Bh5 {[%clk 0:02:57.5]} 9. Bf4 {[%clk 0:02:55.8]} 9... Nf6
{[%clk 0:02:57.1]} 10. Re1 {[%clk 0:02:55.2]} 10... Bd6 {[%clk 0:02:54.6]} 11.
Bxd6 {[%clk 0:02:54.6]} 11... Qxd6 {[%clk 0:02:53]} 12. Ne5 {[%clk 0:02:54.8]}
12... Bxe2 {[%clk 0:02:52.3]} 13. Qxe2 {[%clk 0:02:53.1]} 13... Nxd4 {[%clk
0:02:47]} 14. Qd3 {[%clk 0:02:47.3]} 14... Nc6 {[%clk 0:02:44.9]} 15. Nc4 {[%clk
0:02:43.4]} 15... Qc5 {[%clk 0:02:40.9]} 16. Ne5 {[%clk 0:02:29.7]} 16... Nxe5
{[%clk 0:02:29.7]} 17. Rxe5 {[%clk 0:02:29]} 17... O-O {[%clk 0:02:30.2]} 18.
Rae1 {[%clk 0:02:26.8]} 18... Rac8 {[%clk 0:02:25.3]} 19. Rg5 {[%clk 0:02:21.7]}
19... h6 {[%clk 0:02:18.4]} 20. Rge5 {[%clk 0:02:14.7]} 20... Qc4 {[%clk
0:02:08.3]} 21. Qg3 {[%clk 0:01:58.4]} 21... d4 {[%clk 0:01:58.8]} 22. Ne4
{[%clk 0:01:52.3]} 22... Nxe4 {[%clk 0:01:59]} 23. R1xe4 {[%clk 0:01:47.9]}
23... Qxc2 {[%clk 0:01:59.1]} 24. Rg4 {[%clk 0:01:46.9]} 24... Qh7 {[%clk
0:01:45.9]} 25. Rxd4 {[%clk 0:01:25.4]} 25... Rc1+ {[%clk 0:01:43.4]} 26. Kh2
{[%clk 0:01:25.1]} 26... Qb1 {[%clk 0:01:43.9]} 27. Qf3 {[%clk 0:01:16.2]} 27...
Rh1+ {[%clk 0:01:42.1]} 28. Kg3 {[%clk 0:01:16.3]} 28... Qxb2 {[%clk 0:01:18.8]}
29. Ree4 {[%clk 0:01:09]} 29... Rc8 {[%clk 0:01:13.4]} 30. Rd7 {[%clk
0:00:52.1]} 30... Rc3 {[%clk 0:01:04.7]} 31. Re3 {[%clk 0:00:48.7]} 31... Rxe3
{[%clk 0:01:04.3]} 32. fxe3 {[%clk 0:00:47.9]} 32... Qe5+ {[%clk 0:01:03.5]} 33.
Kf2 {[%clk 0:00:46.8]} 33... f5 {[%clk 0:00:42.4]} 34. Qxb7 {[%clk 0:00:37.4]}
34... Rc1 {[%clk 0:00:33]} 35. Rd2 {[%clk 0:00:31.4]} 35... a5 {[%clk
0:00:31.6]} 36. Qf3 {[%clk 0:00:30.2]} 36... Kh7 {[%clk 0:00:29.4]} 37. Qb7
{[%clk 0:00:25.9]} 37... a4 {[%clk 0:00:24.4]} 38. Qf3 {[%clk 0:00:24.5]} 38...
a3 {[%clk 0:00:24.3]} 39. Qa8 {[%clk 0:00:23.7]} 39... Qc3 {[%clk 0:00:23.3]}
40. Qd8 {[%clk 0:00:20.8]} 40... Rc2 {[%clk 0:00:21.4]} 41. Rxc2 {[%clk
0:00:19.7]} 41... Qxc2+ {[%clk 0:00:22.3]} 42. Kg3 {[%clk 0:00:19.4]} 42... Qxa2
{[%clk 0:00:22.5]} 43. Qd6 {[%clk 0:00:19.6]} 43... Qb3 {[%clk 0:00:19.8]} 44.
Kf4 {[%clk 0:00:17.5]} 44... a2 {[%clk 0:00:19]} 45. Qa6 {[%clk 0:00:17.5]}
45... Qd5 {[%clk 0:00:17]} 46. Qa3 {[%clk 0:00:16.2]} 46... Qxg2 {[%clk
0:00:15.6]} 47. Ke5 {[%clk 0:00:14.9]} 47... Qh2+ {[%clk 0:00:15.2]} 48. Kxe6
{[%clk 0:00:14.5]} 48... Qxh3 {[%clk 0:00:14.9]} 49. Qxa2 {[%clk 0:00:13.4]}
49... Qxe3+ {[%clk 0:00:13.9]} 50. Kxf5 {[%clk 0:00:13.2]} 50... Qf3+ {[%clk
0:00:13.6]} 51. Ke5 {[%clk 0:00:13]} 51... Qf6+ {[%clk 0:00:14]} 52. Ke4 {[%clk
0:00:13.4]} 52... h5 {[%clk 0:00:14.4]} 53. Qh2 {[%clk 0:00:12.4]} 53... Kh6
{[%clk 0:00:14.5]} 54. Qd2+ {[%clk 0:00:11.5]} 54... Qg5 {[%clk 0:00:14]} 55.
Qd6+ {[%clk 0:00:11.6]} 55... Qg6+ {[%clk 0:00:14.5]} 56. Qxg6+ {[%clk
0:00:11.9]} 56... Kxg6 {[%clk 0:00:15.4]} 0-1

[Event "*** Titled Tuesday Blitz"]
[Site "Chess.com"]
[Date "2021.04.06"]
[Round "7"]
[White "AttilaTurzo"]
[Black "GelmanAlexander"]
[Result "0-1"]
[WhiteElo "2515"]
[BlackElo "2659"]
[TimeControl "180+1"]
[EndTime "11:19:16 PDT"]
[Termination "GelmanAlexander won by checkmate"]

1. d4 {[%clk 0:03:00.9]} 1... Nf6 {[%clk 0:02:59.1]} 2. Nf3 {[%clk 0:03:00.8]}
2... c5 {[%clk 0:02:59.1]} 3. c3 {[%clk 0:02:57.4]} 3... b6 {[%clk 0:02:58.8]}
4. Bg5 {[%clk 0:02:52.8]} 4... Bb7 {[%clk 0:02:58]} 5. Nbd2 {[%clk 0:02:50]}
5... d6 {[%clk 0:02:48.1]} 6. e3 {[%clk 0:02:43.7]} 6... Nbd7 {[%clk 0:02:47.2]}
7. Bd3 {[%clk 0:02:26.9]} 7... h6 {[%clk 0:02:46.9]} 8. Bxf6 {[%clk 0:02:26.2]}
8... Nxf6 {[%clk 0:02:47.8]} 9. Qe2 {[%clk 0:02:21.8]} 9... a6 {[%clk
0:02:41.3]} 10. e4 {[%clk 0:02:19.3]} 10... e6 {[%clk 0:02:17.5]} 11. O-O {[%clk
0:02:18.5]} 11... Be7 {[%clk 0:02:15.6]} 12. e5 {[%clk 0:01:53.7]} 12... dxe5
{[%clk 0:02:14.4]} 13. dxe5 {[%clk 0:01:52.4]} 13... Nd5 {[%clk 0:02:14.3]} 14.
g3 {[%clk 0:01:51.3]} 14... Qc7 {[%clk 0:02:04.3]} 15. a4 {[%clk 0:01:43.4]}
15... g5 {[%clk 0:01:57.6]} 16. Be4 {[%clk 0:01:35.9]} 16... g4 {[%clk
0:01:54.9]} 17. Ne1 {[%clk 0:01:18.9]} 17... Qxe5 {[%clk 0:01:42.3]} 18. Nd3
{[%clk 0:01:11.9]} 18... Qc7 {[%clk 0:01:27.7]} 19. Qxg4 {[%clk 0:00:59.7]}
19... Nf6 {[%clk 0:01:14.3]} 20. Qe2 {[%clk 0:00:59.7]} 20... Nxe4 {[%clk
0:01:14]} 21. Nxe4 {[%clk 0:01:00.6]} 21... O-O-O {[%clk 0:01:11.8]} 22. f3
{[%clk 0:01:00]} 22... h5 {[%clk 0:01:03]} 23. a5 {[%clk 0:00:53.3]} 23... b5
{[%clk 0:01:02.9]} 24. b4 {[%clk 0:00:53.2]} 24... h4 {[%clk 0:00:42.8]} 25.
Ndxc5 {[%clk 0:00:51.8]} 25... Bxc5+ {[%clk 0:00:37.6]} 26. bxc5 {[%clk
0:00:42.7]} 26... hxg3 {[%clk 0:00:38.1]} 27. Nxg3 {[%clk 0:00:38.3]} 27...
Qxc5+ {[%clk 0:00:36.9]} 28. Qf2 {[%clk 0:00:36.8]} 28... Qg5 {[%clk 0:00:30.3]}
29. Rad1 {[%clk 0:00:29.3]} 29... Rdg8 {[%clk 0:00:20.8]} 30. Rd4 {[%clk
0:00:22.9]} 30... f5 {[%clk 0:00:18.5]} 31. f4 {[%clk 0:00:20.5]} 31... Qh4
{[%clk 0:00:14.4]} 32. Rd3 {[%clk 0:00:16.9]} 32... e5 {[%clk 0:00:11.6]} 33.
Rd2 {[%clk 0:00:11]} 33... Rg4 {[%clk 0:00:07.1]} 34. Qc5+ {[%clk 0:00:09]}
34... Kb8 {[%clk 0:00:05.8]} 35. Qxe5+ {[%clk 0:00:08.9]} 35... Ka8 {[%clk
0:00:06]} 36. Qe3 {[%clk 0:00:08]} 36... Rhg8 {[%clk 0:00:04.1]} 37. Kf2 {[%clk
0:00:05.1]} 37... Qxh2+ {[%clk 0:00:03.8]} 38. Ke1 {[%clk 0:00:05.5]} 38...
Qxg3+ {[%clk 0:00:04.4]} 39. Qxg3 {[%clk 0:00:05.2]} 39... Rxg3 {[%clk
0:00:05.3]} 40. Rd7 {[%clk 0:00:03.2]} 40... Rxc3 {[%clk 0:00:05.5]} 41. Rf7
{[%clk 0:00:02.9]} 41... Re8+ {[%clk 0:00:05.1]} 42. Kf2 {[%clk 0:00:02.7]}
42... Rc5 {[%clk 0:00:04]} 43. Re1 {[%clk 0:00:01.2]} 43... Rxe1 {[%clk
0:00:03.9]} 44. Kxe1 {[%clk 0:00:01.4]} 44... b4 {[%clk 0:00:04.8]} 45. Kd2
{[%clk 0:00:01.7]} 45... Rb5 {[%clk 0:00:05.4]} 46. Rf6 {[%clk 0:00:02.3]} 46...
b3 {[%clk 0:00:06.3]} 47. Rb6 {[%clk 0:00:02.2]} 47... Rxb6 {[%clk 0:00:06.2]}
48. axb6 {[%clk 0:00:03.1]} 48... a5 {[%clk 0:00:06.7]} 49. Kc3 {[%clk
0:00:03.7]} 49... a4 {[%clk 0:00:07.6]} 50. Kb2 {[%clk 0:00:04.3]} 50... Bd5
{[%clk 0:00:07.8]} 51. Ka3 {[%clk 0:00:04.6]} 51... Kb7 {[%clk 0:00:08.4]} 52.
Kb2 {[%clk 0:00:04.8]} 52... Kxb6 {[%clk 0:00:08.9]} 53. Ka3 {[%clk 0:00:05.7]}
53... Kb5 {[%clk 0:00:09.6]} 54. Kb2 {[%clk 0:00:06.6]} 54... Kb4 {[%clk
0:00:10.3]} 55. Kb1 {[%clk 0:00:07.5]} 55... a3 {[%clk 0:00:11]} 56. Ka1 {[%clk
0:00:08.3]} 56... b2+ {[%clk 0:00:11.1]} 57. Kb1 {[%clk 0:00:09.2]} 57... Be4+
{[%clk 0:00:11.7]} 58. Ka2 {[%clk 0:00:09.6]} 58... b1=Q# {[%clk 0:00:12.6]} 0-1

[Event "*** Titled Tuesday Blitz"]
[Site "Chess.com"]
[Date "2021.04.06"]
[Round "7"]
[White "ega2006"]
[Black "Gerodot71"]
[Result "1-0"]
[WhiteElo "2419"]
[BlackElo "2537"]
[TimeControl "180+1"]
[EndTime "11:19:19 PDT"]
[Termination "ega2006 won by resignation"]

1. e4 {[%clk 0:03:00.9]} 1... e5 {[%clk 0:02:58.6]} 2. Nf3 {[%clk 0:02:59.5]}
2... Nc6 {[%clk 0:02:58.9]} 3. Bc4 {[%clk 0:02:59.2]} 3... Bc5 {[%clk
0:02:57.8]} 4. O-O {[%clk 0:02:58.8]} 4... Nf6 {[%clk 0:02:57.4]} 5. d3 {[%clk
0:02:59.2]} 5... d6 {[%clk 0:02:56.2]} 6. c3 {[%clk 0:02:59.5]} 6... a6 {[%clk
0:02:56.6]} 7. a4 {[%clk 0:02:59.2]} 7... Ba7 {[%clk 0:02:56.8]} 8. Nbd2 {[%clk
0:02:58.3]} 8... h6 {[%clk 0:02:57.2]} 9. Re1 {[%clk 0:02:58.2]} 9... O-O {[%clk
0:02:56.6]} 10. h3 {[%clk 0:02:58.3]} 10... Be6 {[%clk 0:02:57.2]} 11. Bxe6
{[%clk 0:02:57.5]} 11... fxe6 {[%clk 0:02:58.1]} 12. b4 {[%clk 0:02:53.5]} 12...
Nh5 {[%clk 0:02:48.3]} 13. Nf1 {[%clk 0:02:51.4]} 13... Nf4 {[%clk 0:02:47.8]}
14. Be3 {[%clk 0:02:44.1]} 14... Qf6 {[%clk 0:02:44]} 15. Bxa7 {[%clk
0:02:24.8]} 15... Nxa7 {[%clk 0:02:44.9]} 16. Re3 {[%clk 0:02:25.3]} 16... Nc6
{[%clk 0:02:39.5]} 17. Kh2 {[%clk 0:02:18.1]} 17... g5 {[%clk 0:02:23]} 18. g3
{[%clk 0:02:15.7]} 18... Ng6 {[%clk 0:02:23]} 19. N1d2 {[%clk 0:02:15.5]} 19...
h5 {[%clk 0:02:16]} 20. b5 {[%clk 0:01:33.3]} 20... Nce7 {[%clk 0:02:12.1]} 21.
Re2 {[%clk 0:01:27.2]} 21... g4 {[%clk 0:02:04.9]} 22. Ng1 {[%clk 0:01:11.6]}
22... Kg7 {[%clk 0:02:04.2]} 23. Nf1 {[%clk 0:01:04.6]} 23... h4 {[%clk
0:01:52.5]} 24. Ne3 {[%clk 0:00:29.2]} 24... gxh3 {[%clk 0:01:38.8]} 25. Nxh3
{[%clk 0:00:23.7]} 25... Qf3 {[%clk 0:01:24.7]} 26. Re1 {[%clk 0:00:21.3]} 26...
Qf6 {[%clk 0:01:06]} 27. Qg4 {[%clk 0:00:21]} 27... Rh8 {[%clk 0:01:01.2]} 28.
Kg2 {[%clk 0:00:20.5]} 28... Raf8 {[%clk 0:00:59.1]} 29. Ra2 {[%clk 0:00:16.7]}
29... Rfg8 {[%clk 0:00:48.3]} 30. Ng5 {[%clk 0:00:16.1]} 30... Nf8 {[%clk
0:00:22.5]} 31. bxa6 {[%clk 0:00:10.7]} 31... bxa6 {[%clk 0:00:21.8]} 32. gxh4
{[%clk 0:00:08.7]} 32... Neg6 {[%clk 0:00:20]} 33. Rh1 {[%clk 0:00:04]} 33...
Nf4+ {[%clk 0:00:19.4]} 34. Kf1 {[%clk 0:00:04.2]} 34... Kh6 {[%clk 0:00:19.7]}
35. Rd2 {[%clk 0:00:01.5]} 35... N8g6 {[%clk 0:00:18.9]} 36. Qg3 {[%clk
0:00:01.5]} 36... Ne7 {[%clk 0:00:17.1]} 37. Ng4+ {[%clk 0:00:02.4]} 37... Kg7
{[%clk 0:00:15.8]} 38. Nxf6 {[%clk 0:00:03.3]} 38... Kxf6 {[%clk 0:00:16.7]} 39.
Qf3 {[%clk 0:00:02.9]} 39... Rb8 {[%clk 0:00:16.7]} 40. Rd1 {[%clk 0:00:02.4]}
40... Rb2 {[%clk 0:00:16.1]} 41. Nh3 {[%clk 0:00:02.8]} 41... Ng6 {[%clk
0:00:15.8]} 42. h5 {[%clk 0:00:02.4]} 42... Rb1 {[%clk 0:00:06]} 43. Rxb1 {[%clk
0:00:01.7]} 43... Nh4 {[%clk 0:00:06.9]} 44. Nxf4 {[%clk 0:00:01.1]} 44... Nxf3
{[%clk 0:00:07]} 45. Ke2 {[%clk 0:00:01.7]} 45... Ng5 {[%clk 0:00:05.2]} 46. Ng6
{[%clk 0:00:02.2]} 46... Rh6 {[%clk 0:00:05.4]} 47. Rbg1 {[%clk 0:00:02.6]}
47... Nf7 {[%clk 0:00:05.3]} 48. Nh4 {[%clk 0:00:03]} 48... Rh7 {[%clk
0:00:05.4]} 49. Nf3 {[%clk 0:00:03.6]} 49... Ke7 {[%clk 0:00:06]} 50. Rg6 {[%clk
0:00:04]} 50... Rxh5 {[%clk 0:00:05.9]} 51. Rxh5 {[%clk 0:00:03.7]} 1-0

[Event "*** Titled Tuesday Blitz"]
[Site "Chess.com"]
[Date "2021.04.06"]
[Round "7"]
[White "LawrenceTrent"]
[Black "JoliyRoger"]
[Result "0-1"]
[WhiteElo "2541"]
[BlackElo "2413"]
[TimeControl "180+1"]
[EndTime "11:19:20 PDT"]
[Termination "JoliyRoger won on time"]

1. d4 {[%clk 0:03:00.9]} 1... Nf6 {[%clk 0:02:56.3]} 2. Nc3 {[%clk 0:03:01.8]}
2... d6 {[%clk 0:02:51.5]} 3. e4 {[%clk 0:03:01.5]} 3... g6 {[%clk 0:02:52.2]}
4. Bg5 {[%clk 0:03:00.8]} 4... Bg7 {[%clk 0:02:52.6]} 5. e5 {[%clk 0:03:01.1]}
5... Ng8 {[%clk 0:02:44.1]} 6. Nf3 {[%clk 0:02:55]} 6... h6 {[%clk 0:02:43.7]}
7. Bh4 {[%clk 0:02:54.6]} 7... c6 {[%clk 0:02:36.4]} 8. exd6 {[%clk 0:02:48.9]}
8... Qxd6 {[%clk 0:02:34.9]} 9. Bc4 {[%clk 0:02:48.4]} 9... Be6 {[%clk
0:02:26.1]} 10. Qe2 {[%clk 0:02:46.4]} 10... Bxc4 {[%clk 0:02:23.3]} 11. Qxc4
{[%clk 0:02:45.9]} 11... Nf6 {[%clk 0:02:13.9]} 12. Ne5 {[%clk 0:02:43.2]} 12...
Nd5 {[%clk 0:02:00.6]} 13. Nxd5 {[%clk 0:02:34.9]} 13... Qxd5 {[%clk 0:01:55.5]}
14. Qxd5 {[%clk 0:02:33.3]} 14... cxd5 {[%clk 0:01:56.1]} 15. O-O-O {[%clk
0:02:32.5]} 15... Nc6 {[%clk 0:01:28.8]} 16. Nxc6 {[%clk 0:02:29.7]} 16... bxc6
{[%clk 0:01:28.9]} 17. Rhe1 {[%clk 0:02:30.3]} 17... e6 {[%clk 0:01:29.5]} 18.
Bg3 {[%clk 0:02:21.4]} 18... Kd7 {[%clk 0:01:29.7]} 19. Re3 {[%clk 0:02:15.1]}
19... Rhc8 {[%clk 0:01:27]} 20. c4 {[%clk 0:02:07.2]} 20... c5 {[%clk 0:00:53]}
21. dxc5 {[%clk 0:01:43.8]} 21... Rxc5 {[%clk 0:00:51.7]} 22. b3 {[%clk
0:01:39.1]} 22... d4 {[%clk 0:00:43.1]} 23. Red3 {[%clk 0:01:29.9]} 23... e5
{[%clk 0:00:43.3]} 24. f3 {[%clk 0:01:23.1]} 24... f5 {[%clk 0:00:42.5]} 25. Bf2
{[%clk 0:01:20.5]} 25... g5 {[%clk 0:00:43]} 26. g4 {[%clk 0:01:15]} 26... fxg4
{[%clk 0:00:38.9]} 27. fxg4 {[%clk 0:01:12.7]} 27... Rf8 {[%clk 0:00:23.2]} 28.
Bg1 {[%clk 0:01:06.4]} 28... Kc8 {[%clk 0:00:15.7]} 29. Re1 {[%clk 0:01:04.5]}
29... Rf4 {[%clk 0:00:13.4]} 30. h3 {[%clk 0:01:04.3]} 30... Rf7 {[%clk
0:00:11.4]} 31. Kc2 {[%clk 0:01:01.5]} 31... Rc6 {[%clk 0:00:10.5]} 32. Rd2
{[%clk 0:01:00.2]} 32... Rf3 {[%clk 0:00:09.5]} 33. Rd3 {[%clk 0:00:58.6]} 33...
Rcf6 {[%clk 0:00:07.8]} 34. Rxe5 {[%clk 0:00:53.6]} 34... Rxd3 {[%clk
0:00:07.8]} 35. Rc5+ {[%clk 0:00:53.8]} 35... Kd7 {[%clk 0:00:07.4]} 36. Kxd3
{[%clk 0:00:53.5]} 36... Rf3+ {[%clk 0:00:07.8]} 37. Ke4 {[%clk 0:00:53.9]}
37... Rg3 {[%clk 0:00:07.6]} 38. Bxd4 {[%clk 0:00:53.5]} 38... Bxd4 {[%clk
0:00:07]} 39. Kxd4 {[%clk 0:00:53.3]} 39... Rxh3 {[%clk 0:00:07.9]} 40. Ra5
{[%clk 0:00:53.5]} 40... Rh4 {[%clk 0:00:07.6]} 41. Rxa7+ {[%clk 0:00:52.5]}
41... Kc6 {[%clk 0:00:08]} 42. Ra6+ {[%clk 0:00:52.8]} 42... Kb7 {[%clk
0:00:07.8]} 43. Rg6 {[%clk 0:00:53]} 43... Rxg4+ {[%clk 0:00:08.2]} 44. Kc5
{[%clk 0:00:51]} 44... h5 {[%clk 0:00:08.8]} 45. a4 {[%clk 0:00:49.7]} 45... h4
{[%clk 0:00:09.4]} 46. a5 {[%clk 0:00:50.1]} 46... h3 {[%clk 0:00:10]} 47. Rg7+
{[%clk 0:00:50.3]} 47... Kb8 {[%clk 0:00:07.5]} 48. Kb6 {[%clk 0:00:50.1]} 48...
Kc8 {[%clk 0:00:08.1]} 49. a6 {[%clk 0:00:50.2]} 49... h2 {[%clk 0:00:07.8]} 50.
Rh7 {[%clk 0:00:48.4]} 50... Rh4 {[%clk 0:00:08.2]} 51. Rc7+ {[%clk 0:00:33.4]}
51... Kd8 {[%clk 0:00:07.2]} 52. a7 {[%clk 0:00:32.1]} 52... Rh6+ {[%clk
0:00:07.7]} 0-1